fUSD/lending_fUSD_20240205
["ID","MTS","AMOUNT","RATE_DAILY","PERIOD"]
[313292100,1707095465145,-1000.0,0.00041095,30]
[313292101,1707095465155,-622.37209142,0.00041095,7]
[313292102,1707095465164,-151.0,0.00041096,7]
[313292103,1707095465173,-151.0,0.00041096,5]
[313292104,1707095465182,-151.0,0.00041096,5]
[313292105,1707095465193,-151.0,0.00041096,5]
[313292106,1707095465202,-151.0,0.00041096,5]
[313292107,1707095465212,-151.0,0.00041096,5]
[313292108,1707095465222,-151.0,0.00041096,5]
[313292109,1707095465232,-151.0,0.00041096,5]
[313292110,1707095465242,-151.0,0.00041096,5]
[313292111,1707095465251,-151.0,0.00041096,5]
[313292112,1707095465261,-151.0,0.00041096,5]
[313292113,1707095465271,-151.0,0.00041096,5]
[313292114,1707095465280,-151.0,0.00041096,5]
[313292115,1707095465290,-182.097781,0.00041096,5]
[313292116,1707095465300,-151.0,0.00041096,7]
[313292117,1707095465310,-151.0,0.00041096,7]
[313292118,1707095465319,-151.0,0.00041096,7]
[313292119,1707095465329,-151.0,0.00041096,7]
[313292120,1707095465339,-151.0,0.00041096,7]
[313292121,1707095465349,-151.0,0.00041096,7]
[313292122,1707095465358,-151.0,0.00041096,7]
[313292123,1707095465368,-151.0,0.00041096,7]
[313292124,1707095465378,-151.0,0.00041096,7]
[313292125,1707095465389,-151.0,0.00041096,7]
[313292126,1707095465399,-151.0,0.00041096,7]
[313292127,1707095465408,-222.123348,0.00041096,14]
[313292128,1707095465418,-203.05713517,0.00041096,30]
[313292129,1707095465429,-15367.38,0.000411,7]
[313292130,1707095465439,-12164.96,0.000411,7]
[313292131,1707095465451,-2000.0,0.000411,2]
[313292132,1707095465461,-2900.0,0.000411,2]
[313292133,1707095465472,-300.0,0.000411,16]
[313292134,1707095465482,-1000.0,0.000411,2]
[313292135,1707095465493,-250.0,0.000411,2]
[313292136,1707095465502,-200.0,0.000411,16]
[313292137,1707095465512,-150.0,0.000411,11]
[313292138,1707095465521,-799.604117,0.000411,11]
[313292139,1707095465531,-200.0,0.000411,16]
[313292140,1707095465541,-200.0,0.000411,2]
[313292141,1707095465550,-17321.3083333,0.00041114,2]
[313292142,1707095465560,-1485.4637362,0.00041114,2]
[313292143,1707095465571,-1152.4683369,0.0004117,2]
[313292144,1707095465581,-171.0205,0.00041198,15]
[313292145,1707095465591,-205.0,0.00041277,28]
[313292146,1707095465601,-15367.38,0.000413,7]
[313292147,1707095465610,-12164.96,0.000413,7]
[313292148,1707095465620,-410.6,0.0004137,2]
[313292149,1707095465629,-417.36,0.0004137,2]
[313292150,1707095465638,-410.6,0.0004137,2]
[313292151,1707095465647,-417.36,0.0004137,2]
[313292152,1707095465657,-417.36,0.0004137,2]
[313292153,1707095465667,-417.36,0.0004137,2]
[313292154,1707095465677,-417.36,0.0004137,2]
[313292155,1707095465686,-417.36,0.0004137,2]
[313292156,1707095465698,-417.36,0.0004137,2]
[313292157,1707095465707,-938.3,0.0004137,2]
[313292158,1707095465717,-150.0,0.00041384,2]
[313292159,1707095465726,-1886.223508,0.000414,47]
[313292160,1707095465735,-152.0,0.00041423,5]
[313292161,1707095465745,-5000.0,0.00041442,30]
[313292162,1707095465754,-171.0205,0.00041498,15]
[313292163,1707095465763,-447.89292513,0.00041499,4]
[313292164,1707095465773,-15367.38,0.000415,7]
[313292165,1707095465783,-12164.96,0.000415,7]
[313292166,1707095465792,-300.00000003,0.000415,38]
[313292167,1707095465802,-1000.0,0.000415,47]
[313292168,1707095465811,-323.65756456,0.00041522,4]
[313292169,1707095465821,-171.0205,0.00041598,17]
[313292170,1707095465830,-166.0,0.000416,7]
[313292171,1707095465840,-200.0,0.000416,17]
[313292172,1707095465849,-1000.0,0.000416,29]
[313292173,1707095465858,-1000.0,0.000416,48]
[313292174,1707095465867,-500.0,0.00041643,2]
[313292175,1707095465877,-1031.1,0.00041643,7]
[313292176,1707095465886,-500.0,0.00041643,2]
[313292177,1707095465895,-501.7819094,0.00041643,2]
[313292178,1707095465905,-500.0,0.00041643,2]
[313292179,1707095465914,-500.6095208,0.00041643,2]
[313292180,1707095465924,-583.7362623,0.00041643,2]
[313292181,1707095465933,-500.0,0.00041643,2]
[313292182,1707095465943,-553.67,0.00041643,2]
[313292183,1707095465952,-500.0,0.00041643,2]
[313292184,1707095465961,-500.0,0.00041643,2]
[313292185,1707095465970,-510.91320482,0.00041643,2]
[313292186,1707095465979,-500.0,0.00041643,2]
[313292187,1707095465988,-516.61805298,0.00041643,2]
[313292188,1707095465998,-500.0,0.00041643,2]
[313292189,1707095466008,-500.0,0.00041643,2]
[313292190,1707095466017,-1044.03,0.00041643,2]
[313292191,1707095466026,-500.0,0.00041643,2]
[313292192,1707095466035,-506.25724863,0.00041643,2]
[313292193,1707095466045,-500.0,0.00041643,2]
[313292194,1707095466054,-500.0,0.00041643,2]
[313292195,1707095466064,-500.0,0.00041643,2]
[313292196,1707095466073,-500.0,0.00041643,2]
[313292197,1707095466087,-500.0,0.00041643,2]
[313292198,1707095466097,-574.86851042,0.00041643,2]
[313292199,1707095466106,-500.0,0.00041643,2]
[313292200,1707095466115,-803.85,0.00041643,30]
[313292201,1707095466125,-608.81,0.00041643,2]
[313292202,1707095466134,-500.0,0.00041643,2]
[313292203,1707095466143,-911.94,0.00041643,7]
[313292204,1707095466152,-500.0,0.00041643,2]
[313292205,1707095466164,-500.0,0.00041643,2]
[313292206,1707095466173,-1072.12,0.00041643,2]
[313292207,1707095466182,-337.91308596,0.00041643,2]
[313292208,1707095466192,-500.0,0.00041643,2]
[313292209,1707095466201,-571.25458677,0.00041643,2]
[313292210,1707095466210,-947.41,0.00041643,20]
[313292211,1707095466220,-500.0,0.00041643,2]
[313292212,1707095466229,-500.0,0.00041643,2]
[313292213,1707095466238,-645.15,0.00041643,2]
[313292214,1707095466248,-1039.15,0.00041643,2]
[313292215,1707095466343,-500.0,0.00041643,10]
[313292216,1707095466353,-1000.0,0.00041643,30]
[313292217,1707095466363,-221.84748734,0.00041643,2]
[313292218,1707095466372,-500.0,0.00041643,2]
[313292219,1707095466382,-500.0,0.00041643,2]
[313292220,1707095466391,-500.0,0.00041643,2]
[313292221,1707095466401,-1171.17,0.00041643,2]
[313292222,1707095466410,-500.0,0.00041643,2]
[313292223,1707095466420,-883.87,0.00041643,2]
[313292224,1707095466429,-828.79,0.00041643,2]
[313292225,1707095466439,-500.0,0.00041643,2]
[313292226,1707095466449,-500.0,0.00041643,2]
[313292227,1707095466459,-623.3,0.00041643,2]
[313292228,1707095466469,-500.0,0.00041643,2]
[313292229,1707095466479,-566.49360132,0.00041643,2]
[313292230,1707095466488,-3906.28,0.00041643,2]
[313292231,1707095466498,-500.0,0.00041643,2]
[313292232,1707095466507,-500.0,0.00041643,2]
[313292233,1707095466516,-500.0,0.00041643,2]
[313292234,1707095466526,-500.0,0.00041643,2]
[313292235,1707095466535,-500.0,0.00041643,2]
[313292236,1707095466545,-500.0,0.00041643,2]
[313292237,1707095466555,-500.0,0.00041643,2]
[313292238,1707095466564,-3442.61,0.00041643,2]
[313292239,1707095466573,-500.0,0.00041643,2]
[313292240,1707095466584,-500.0,0.00041643,2]
[313292241,1707095466594,-500.0,0.00041643,2]
[313292242,1707095466604,-500.0,0.00041643,2]
[313292243,1707095466614,-500.0,0.00041643,2]
[313292244,1707095466625,-500.0,0.00041643,2]
[313292245,1707095466637,-500.0,0.00041643,2]
[313292246,1707095466646,-500.0,0.00041643,2]
[313292247,1707095466657,-470.30905791,0.00041643,2]
[313292248,1707095466667,-500.0,0.00041643,2]
[313292249,1707095466678,-500.0,0.00041643,2]
[313292250,1707095466688,-500.0,0.00041643,2]
[313292251,1707095466703,-1766.17,0.00041643,5]
[313292252,1707095466714,-500.0,0.00041643,2]
[313292253,1707095466723,-717.49,0.00041643,2]
[313292254,1707095466732,-2896.55,0.00041643,2]
[313292255,1707095466742,-495.66721512,0.00041643,2]
[313292256,1707095466751,-500.0,0.00041643,2]
[313292257,1707095466760,-500.0,0.00041643,2]
[313292258,1707095466770,-1943.62,0.00041643,2]
[313292259,1707095466779,-882.82,0.00041643,2]
[313292260,1707095466789,-500.0,0.00041643,2]
[313292261,1707095466798,-500.0,0.00041643,2]
[313292262,1707095466806,-500.0,0.00041643,2]
[313292263,1707095466815,-500.0,0.00041643,2]
[313292264,1707095466824,-500.0,0.00041643,2]
[313292265,1707095466834,-500.0,0.00041643,2]
[313292266,1707095466843,-500.0,0.00041643,2]
[313292267,1707095466852,-173.31648709,0.00041643,2]
[313292268,1707095466861,-500.0,0.00041643,2]
[313292269,1707095466870,-500.0,0.00041643,2]
[313292270,1707095466879,-500.0,0.00041643,2]
[313292271,1707095466888,-500.0,0.00041643,2]
[313292272,1707095466898,-500.0,0.00041643,2]
[313292273,1707095466907,-500.0,0.00041643,2]
[313292274,1707095466917,-500.0,0.00041643,2]
[313292275,1707095466926,-633.54,0.00041643,2]
[313292276,1707095466935,-2280.46,0.00041643,2]
[313292277,1707095466947,-666.48,0.00041643,2]
[313292278,1707095466957,-1000.0,0.00041643,7]
[313292279,1707095466965,-500.0,0.00041643,2]
[313292280,1707095466975,-787.28,0.00041643,2]
[313292281,1707095466983,-500.0,0.00041643,2]
[313292282,1707095466993,-1000.0,0.00041643,7]
[313292283,1707095467002,-500.0,0.00041643,2]
[313292284,1707095467011,-500.0,0.00041643,2]
[313292285,1707095467019,-500.0,0.00041643,2]
[313292286,1707095467029,-500.0,0.00041643,2]
[313292287,1707095467038,-500.0,0.00041643,2]
[313292288,1707095467047,-500.0,0.00041643,2]
[313292289,1707095467056,-500.0,0.00041643,2]
[313292290,1707095467070,-500.0,0.00041643,2]
[313292291,1707095467080,-500.0,0.00041643,2]
[313292292,1707095467089,-500.0,0.00041643,2]
[313292293,1707095467099,-500.0,0.00041643,2]
[313292294,1707095467110,-421.71430688,0.00041643,2]
[313292295,1707095467120,-500.0,0.00041643,2]
[313292296,1707095467129,-173.2462883,0.00041643,2]
[313292297,1707095467139,-500.0,0.00041643,2]
[313292298,1707095467149,-500.0,0.00041643,2]
[313292299,1707095467158,-500.0,0.00041643,2]
[313292300,1707095467167,-500.0,0.00041643,2]
[313292301,1707095467176,-500.0,0.00041643,2]
[313292302,1707095467186,-506.5128141,0.00041643,2]
[313292303,1707095467196,-1162.55,0.00041643,2]
[313292304,1707095467206,-567.05295124,0.00041643,2]
[313292305,1707095467215,-2177.23,0.00041643,5]
[313292306,1707095467224,-320.88,0.00041643,2]
[313292307,1707095467233,-500.0,0.00041643,2]
[313292308,1707095467243,-598.05,0.00041643,2]
[313292309,1707095467252,-500.0,0.00041643,2]
[313292310,1707095467263,-500.0,0.00041643,2]
[313292311,1707095467272,-500.97,0.00041643,2]
[313292312,1707095467282,-500.0,0.00041643,2]
[313292313,1707095467291,-500.0,0.00041643,2]
[313292314,1707095467301,-500.0,0.00041643,2]
[313292315,1707095467311,-500.0,0.00041643,2]
[313292316,1707095467321,-500.0,0.00041643,2]
[313292317,1707095467330,-500.0,0.00041643,2]
[313292318,1707095467340,-500.0,0.00041643,2]
[313292319,1707095467350,-500.0,0.00041643,2]
[313292320,1707095467359,-500.0,0.00041643,2]
[313292321,1707095467369,-500.0,0.00041643,2]
[313292322,1707095467378,-500.0,0.00041643,2]
[313292323,1707095467389,-776.5,0.00041643,2]
[313292324,1707095467398,-199.5005818,0.00041643,2]
[313292325,1707095467408,-500.0,0.00041643,2]
[313292326,1707095467417,-500.0,0.00041643,2]
[313292327,1707095467427,-500.0,0.00041643,2]
[313292328,1707095467437,-1021.96607554,0.00041667,4]
[313292329,1707095467449,-161.81736275,0.00041667,4]
[313292330,1707095467458,-341.54331615,0.00041667,4]
[313292331,1707095467467,-15367.38,0.000417,7]
[313292332,1707095467476,-12164.96,0.000417,7]
[313292333,1707095467486,-1000.0,0.000417,30]
[313292334,1707095467495,-1000.0,0.000417,48]
[313292335,1707095467505,-500.0,0.00041755,4]
[313292336,1707095467514,-500.0,0.00041764,4]
[313292337,1707095467524,-500.0,0.00041764,4]
[313292338,1707095467533,-4917.73803466,0.0004177,16]
[313292339,1707095467542,-263.98004912,0.0004177,34]
[313292340,1707095467552,-195.81524756,0.0004177,2]
[313292341,1707095467560,-207.05635437,0.0004177,2]
[313292342,1707095467569,-2193.8864588,0.00041771,2]
[313292343,1707095467578,-19876.1183333,0.00041771,2]
[313292344,1707095467588,-1704.5625211,0.00041771,2]
[313292345,1707095467598,-1322.4518956,0.00041771,2]
[313292346,1707095467607,-500.0,0.00041772,4]
[313292347,1707095467617,-500.0,0.00041772,4]
[313292348,1707095467626,-500.0,0.00041781,4]
[313292349,1707095467636,-500.0,0.00041781,4]
[313292350,1707095467646,-160.0,0.0004179,3]
[313292351,1707095467655,-500.0,0.0004179,4]
[313292352,1707095467666,-500.0,0.0004179,4]
[313292353,1707095467676,-500.0,0.0004179,4]
[313292354,1707095467686,-171.0205,0.00041798,15]
[313292355,1707095467697,-500.0,0.00041799,4]
[313292356,1707095467707,-500.0,0.00041799,4]
[313292357,1707095467717,-1101912.4202811,0.000418,4]
[313292358,1707095467727,-16195.94,0.000418,7]
[313292359,1707095467736,-300.0,0.000418,17]
[313292360,1707095467829,-3000.0,0.000418,32]
[313292361,1707095467839,-363.027938,0.000418,37]
[313292362,1707095467849,-200.0,0.000418,48]
[313292363,1707095467858,-300.0,0.000418,15]
[313292364,1707095467868,-1000.0,0.000418,30]
[313292365,1707095467877,-1000.0,0.000418,48]
[313292366,1707095467887,-911.959885,0.000418,15]
[313292367,1707095467896,-3000.0,0.0004181,32]
[313292368,1707095467905,-5295.117098,0.0004182,32]
[313292369,1707095467915,-2000.0,0.00041824,14]
[313292370,1707095467924,-300.0,0.00041828,4]
[313292371,1707095467933,-2468.1743725,0.00041841,2]
[313292372,1707095467944,-2742.4622863,0.00041841,2]
[313292373,1707095467953,-22430.9283333,0.00041841,2]
[313292374,1707095467963,-24985.7383333,0.00041841,2]
[313292375,1707095467972,-1923.6613059,0.00041841,2]
[313292376,1707095467982,-2142.7600908,0.00041841,2]
[313292377,1707095467991,-1492.4354543,0.00041841,2]
[313292378,1707095468000,-1662.419013,0.00041841,2]
[313292379,1707095468010,-543.53435668,0.00041847,5]
[313292380,1707095468020,-9040.87929993,0.00041861,2]
[313292381,1707095468029,-312.17935994,0.00041862,4]
[313292382,1707095468039,-122990.93245182,0.00041863,4]
[313292383,1707095468049,-701.38557768,0.00041864,30]
[313292384,1707095468060,-1553.67970284,0.00041864,4]
[313292385,1707095468069,-422.70248564,0.00041864,4]
[313292386,1707095468083,-578.6637511,0.00041864,4]
[313292387,1707095468095,-155.4231818,0.00041864,4]
[313292388,1707095468105,-406.71512662,0.00041864,4]
[313292389,1707095468114,-282.08995367,0.00041864,4]
[313292390,1707095468124,-162.07687183,0.00041864,4]
[313292391,1707095468134,-8866.1862363,0.00041864,4]
[313292392,1707095468144,-155.31861112,0.00041864,4]
[313292393,1707095468153,-524.31366153,0.00041864,4]
[313292394,1707095468163,-221.14229452,0.00041864,4]
[313292395,1707095468174,-266.21465946,0.00041864,4]
[313292396,1707095468183,-2146.87991109,0.00041864,4]
[313292397,1707095468195,-196.9846735,0.00041864,4]
[313292398,1707095468204,-203.25070225,0.00041864,4]
[313292399,1707095468214,-155.17807555,0.00041864,4]
[313292400,1707095468224,-256.56027218,0.00041864,4]
[313292401,1707095468233,-265.23406397,0.00041864,4]
[313292402,1707095468242,-295.78388584,0.00041864,4]
[313292403,1707095468252,-200.0,0.00041864,2]
[313292404,1707095468261,-936.6209496,0.00041864,2]
[313292405,1707095468271,-487.54545682,0.00041864,4]
[313292406,1707095468280,-474.4092373,0.00041864,4]
[313292407,1707095468289,-265.15535623,0.00041865,4]
[313292408,1707095468299,-314.40306534,0.00041865,4]
[313292409,1707095468310,-696.31410968,0.00041865,4]
[313292410,1707095468319,-156.36940979,0.00041865,4]
[313292411,1707095468329,-163.03748184,0.00041865,4]
[313292412,1707095468339,-155.46427974,0.00041865,4]
[313292413,1707095468349,-9114.1661631,0.00041865,4]
[313292414,1707095468359,-155.0,0.00041865,4]
[313292415,1707095468369,-270.83268122,0.00041866,4]
[313292416,1707095468379,-2479.81106025,0.0004187,3]
[313292417,1707095468389,-285.43770354,0.0004187,3]
[313292418,1707095468399,-400.0,0.0004187,3]
[313292419,1707095468408,-407187.82109457,0.0004187,10]
[313292420,1707095468418,-5169.51961609,0.0004187,7]
[313292421,1707095468427,-42000.0,0.0004187,7]
[313292422,1707095468437,-2258351.36401991,0.0004187,7]
[313292423,1707095468448,-50823.72062806,0.0004187,7]
[313292424,1707095468458,-44313.28700414,0.0004187,7]
[313292425,1707095468467,-648.04279674,0.0004187,7]
[313292426,1707095468477,-13308.19434166,0.0004187,30]
[313292427,1707095468486,-204.54892754,0.0004187,7]
[313292428,1707095468496,-10336.08288272,0.0004187,7]
[313292429,1707095468506,-1024.42813488,0.0004187,7]
[313292430,1707095468516,-500.0,0.0004187,120]
[313292431,1707095468525,-186.05733582,0.0004187,31]
[313292432,1707095468536,-186.618352,0.0004187,60]
[313292433,1707095468545,-7128.36995635,0.0004187,7]
[313292434,1707095468554,-3733.59097507,0.0004187,7]
[313292435,1707095468564,-2117.10041994,0.0004187,3]
[313292436,1707095468573,-13476.16833883,0.0004187,7]
[313292437,1707095468583,-84461.77280974,0.0004187,7]
[313292438,1707095468592,-3010.19501013,0.0004187,7]
[313292439,1707095468602,-305.9338853,0.0004187,120]
[313292440,1707095468612,-10000.0,0.0004187,30]
[313292441,1707095468622,-3185.52466862,0.0004187,5]
[313292442,1707095468631,-664.0,0.0004187,120]
[313292443,1707095468640,-152.25797864,0.0004187,120]
[313292444,1707095468650,-241.48605097,0.0004187,30]
[313292445,1707095468659,-511.61993414,0.0004187,120]
[313292446,1707095468669,-642.29349899,0.0004187,120]
[313292447,1707095468678,-343.565151,0.0004187,120]
[313292448,1707095468688,-216.58432984,0.0004187,120]
[313292449,1707095468701,-194.97096359,0.0004187,60]
[313292450,1707095468710,-220.194959,0.0004187,120]
[313292451,1707095468720,-428.65978599,0.0004187,120]
[313292452,1707095468730,-7521.70130152,0.0004187,4]
[313292453,1707095468739,-2000.0,0.0004187,31]
[313292454,1707095468748,-213.83795986,0.0004187,2]
[313292455,1707095468757,-1138.11636323,0.0004187,30]
[313292456,1707095468767,-150.0,0.0004187,30]
[313292457,1707095468777,-2314.57327458,0.0004187,2]
[313292458,1707095468786,-399.802059,0.0004187,30]
[313292459,1707095468796,-2483.70788711,0.0004187,2]
[313292460,1707095468805,-160.02,0.000419,7]
[313292461,1707095468815,-15367.38,0.000419,7]
[313292462,1707095468825,-12164.96,0.000419,7]
[313292463,1707095468835,-933.8156262,0.000419,2]
[313292464,1707095468844,-300.0,0.000419,15]
[313292465,1707095468854,-1000.0,0.000419,30]
[313292466,1707095468863,-100000.0,0.00042,22]
[313292467,1707095468872,-2242.81246169,0.00042,4]
[313292468,1707095468882,-1008.33949958,0.00042,6]
[313292469,1707095468891,-235.9316174,0.00042,39]
[313292470,1707095468901,-7432.38,0.00042,30]
[313292471,1707095468911,-200.0,0.00042,2]
[313292472,1707095468921,-1000.0,0.00042,30]
[313292473,1707095468930,-1391.85876225,0.00042055,4]
[313292474,1707095468939,-300.0,0.000421,17]
[313292475,1707095468950,-200.0,0.000421,17]
[313292476,1707095468960,-162.48082418,0.0004213,16]
[313292477,1707095468969,-1000.0,0.00042184,15]
[313292478,1707095468979,-171.0205,0.00042198,17]
[313292479,1707095468989,-1000.0,0.00042227,15]
[313292480,1707095468998,-1000.0,0.00042227,15]
[313292481,1707095469009,-1000.0,0.0004223,15]
[313292482,1707095469018,-1000.0,0.00042235,15]
[313292483,1707095469028,-443.0,0.0004229,2]
[313292484,1707095469037,-16195.94,0.000423,7]
[313292485,1707095469047,-7101.0,0.0004239,2]
[313292486,1707095469057,-4674.0,0.0004239,2]
[313292487,1707095469072,-1000.0,0.00042391,15]
[313292488,1707095469082,-150.0,0.00042394,2]
[313292489,1707095469094,-166.0,0.000424,7]
[313292490,1707095469106,-1000.0,0.00042449,15]
[313292491,1707095469115,-5000.0,0.00042463,7]
[313292492,1707095469125,-500.0,0.00042465,2]
[313292493,1707095469134,-1031.1,0.00042465,7]
[313292494,1707095469221,-500.0,0.00042465,2]
[313292495,1707095469231,-500.0,0.00042465,2]
[313292496,1707095469241,-553.67,0.00042465,2]
[313292497,1707095469251,-500.0,0.00042465,2]
[313292498,1707095469260,-500.0,0.00042465,2]
[313292499,1707095469269,-500.0,0.00042465,2]
[313292500,1707095469279,-500.0,0.00042465,2]
[313292501,1707095469288,-1044.03,0.00042465,2]
[313292502,1707095469297,-500.0,0.00042465,2]
[313292503,1707095469307,-386.46368242,0.00042465,2]
[313292504,1707095469316,-500.0,0.00042465,2]
[313292505,1707095469326,-500.0,0.00042465,2]
[313292506,1707095469335,-500.0,0.00042465,2]
[313292507,1707095469344,-500.0,0.00042465,2]
[313292508,1707095469354,-803.85,0.00042465,30]
[313292509,1707095469363,-608.81,0.00042465,2]
[313292510,1707095469372,-500.0,0.00042465,2]
[313292511,1707095469381,-911.94,0.00042465,7]
[313292512,1707095469391,-500.0,0.00042465,2]
[313292513,1707095469400,-500.0,0.00042465,2]
[313292514,1707095469409,-1072.12,0.00042465,2]
[313292515,1707095469419,-500.0,0.00042465,2]
[313292516,1707095469429,-947.41,0.00042465,20]
[313292517,1707095469438,-500.0,0.00042465,2]
[313292518,1707095469449,-500.0,0.00042465,2]
[313292519,1707095469459,-645.15,0.00042465,2]
[313292520,1707095469469,-1039.15,0.00042465,2]
[313292521,1707095469478,-500.0,0.00042465,10]
[313292522,1707095469488,-1000.0,0.00042465,30]
[313292523,1707095469498,-500.0,0.00042465,2]
[313292524,1707095469507,-500.0,0.00042465,2]
[313292525,1707095469517,-500.0,0.00042465,2]
[313292526,1707095469527,-1171.17,0.00042465,2]
[313292527,1707095469537,-500.0,0.00042465,2]
[313292528,1707095469546,-883.87,0.00042465,2]
[313292529,1707095469555,-828.79,0.00042465,2]
[313292530,1707095469565,-500.0,0.00042465,2]
[313292531,1707095469574,-367.14607487,0.00042465,2]
[313292532,1707095469584,-623.3,0.00042465,2]
[313292533,1707095469593,-500.0,0.00042465,2]
[313292534,1707095469602,-3906.28,0.00042465,2]
[313292535,1707095469611,-500.0,0.00042465,2]
[313292536,1707095469620,-500.0,0.00042465,2]
[313292537,1707095469630,-521.34786758,0.00042465,2]
[313292538,1707095469639,-440.80581388,0.00042465,2]
[313292539,1707095469648,-500.0,0.00042465,2]
[313292540,1707095469658,-500.0,0.00042465,2]
[313292541,1707095469667,-500.0,0.00042465,2]
[313292542,1707095469677,-3442.61,0.00042465,2]
[313292543,1707095469686,-223.98744219,0.00042465,2]
[313292544,1707095469696,-500.0,0.00042465,2]
[313292545,1707095469705,-500.0,0.00042465,2]
[313292546,1707095469715,-500.0,0.00042465,2]
[313292547,1707095469724,-500.0,0.00042465,2]
[313292548,1707095469734,-500.0,0.00042465,2]
[313292549,1707095469743,-500.0,0.00042465,2]
[313292550,1707095469752,-219.4408742,0.00042465,2]
[313292551,1707095469762,-500.0,0.00042465,2]
[313292552,1707095469771,-500.0,0.00042465,2]
[313292553,1707095469780,-500.0,0.00042465,2]
[313292554,1707095469790,-1766.17,0.00042465,5]
[313292555,1707095469799,-717.49,0.00042465,2]
[313292556,1707095469809,-2896.55,0.00042465,2]
[313292557,1707095469825,-500.0,0.00042465,2]
[313292558,1707095469845,-1943.62,0.00042465,2]
[313292559,1707095469862,-882.82,0.00042465,2]
[313292560,1707095469882,-500.0,0.00042465,2]
[313292561,1707095469898,-500.0,0.00042465,2]
[313292562,1707095469914,-500.0,0.00042465,2]
[313292563,1707095469931,-500.0,0.00042465,2]
[313292564,1707095469947,-500.0,0.00042465,2]
[313292565,1707095469965,-500.0,0.00042465,2]
[313292566,1707095469982,-555.1740158,0.00042465,2]
[313292567,1707095469999,-500.0,0.00042465,2]
[313292568,1707095470019,-500.0,0.00042465,2]
[313292569,1707095470036,-500.0,0.00042465,2]
[313292570,1707095470048,-257.85320708,0.00042465,2]
[313292571,1707095470065,-359.89589449,0.00042465,2]
[313292572,1707095470081,-336.09620681,0.00042465,2]
[313292573,1707095470095,-500.0,0.00042465,2]
[313292574,1707095470113,-633.54,0.00042465,2]
[313292575,1707095470127,-2280.46,0.00042465,2]
[313292576,1707095470142,-666.48,0.00042465,2]
[313292577,1707095470156,-1000.0,0.00042465,7]
[313292578,1707095470172,-500.0,0.00042465,2]
[313292579,1707095470187,-787.28,0.00042465,2]
[313292580,1707095470202,-1000.0,0.00042465,7]
[313292581,1707095470217,-500.0,0.00042465,2]
[313292582,1707095470232,-500.0,0.00042465,2]
[313292583,1707095470246,-500.0,0.00042465,2]
[313292584,1707095470260,-500.0,0.00042465,2]
[313292585,1707095470275,-500.0,0.00042465,2]
[313292586,1707095470290,-500.0,0.00042465,2]
[313292587,1707095470306,-500.0,0.00042465,2]
[313292588,1707095470320,-500.0,0.00042465,2]
[313292589,1707095470335,-500.0,0.00042465,2]
[313292590,1707095470350,-500.0,0.00042465,2]
[313292591,1707095470366,-500.0,0.00042465,2]
[313292592,1707095470381,-500.0,0.00042465,2]
[313292593,1707095470396,-500.0,0.00042465,2]
[313292594,1707095470411,-500.0,0.00042465,2]
[313292595,1707095470427,-204.25967914,0.00042465,2]
[313292596,1707095470442,-517.14036512,0.00042465,2]
[313292597,1707095470459,-500.0,0.00042465,2]
[313292598,1707095470474,-500.0,0.00042465,2]
[313292599,1707095470489,-1162.55,0.00042465,2]